fUSD/lending_fUSD_20250103
["ID","MTS","AMOUNT","RATE_DAILY","PERIOD"]
[347515353,1735897867160,-547.58,9.544e-05,2]
[347515354,1735897867169,-500.0,9.544e-05,2]
[347515355,1735897867178,-1619.51,9.544e-05,2]
[347515356,1735897867189,-500.0,9.544e-05,2]
[347515357,1735897867198,-987.33,9.544e-05,2]
[347515358,1735897867208,-1763.31,9.544e-05,2]
[347515359,1735897867217,-751.5,9.544e-05,2]
[347515360,1735897867226,-500.0,9.544e-05,2]
[347515361,1735897867236,-1526.8,9.544e-05,2]
[347515362,1735897867246,-500.0,9.544e-05,2]
[347515363,1735897867255,-948.81,9.544e-05,2]
[347515364,1735897867265,-500.0,9.544e-05,2]
[347515365,1735897867274,-2135.92,9.544e-05,2]
[347515366,1735897867284,-994.25,9.544e-05,2]
[347515367,1735897867293,-500.0,9.544e-05,2]
[347515368,1735897867303,-202.28575945,9.544e-05,2]
[347515369,1735897867312,-3704.18,9.544e-05,2]
[347515370,1735897867321,-500.0,9.544e-05,2]
[347515371,1735897867331,-825.45,9.544e-05,2]
[347515372,1735897867339,-889.94,9.544e-05,2]
[347515373,1735897867349,-500.0,9.544e-05,2]
[347515374,1735897867358,-1924.06,9.544e-05,2]
[347515375,1735897867367,-733.19,9.544e-05,2]
[347515376,1735897867376,-500.0,9.544e-05,2]
[347515377,1735897867386,-1398.87,9.544e-05,2]
[347515378,1735897867396,-500.0,9.544e-05,2]
[347515379,1735897867406,-1059.59,9.544e-05,2]
[347515380,1735897867418,-500.0,9.544e-05,2]
[347515381,1735897867430,-1417.18,9.544e-05,2]
[347515382,1735897867441,-500.0,9.544e-05,2]
[347515383,1735897867450,-500.0,9.544e-05,2]
[347515384,1735897867459,-3585.77,9.544e-05,2]
[347515385,1735897867468,-3272.27,9.544e-05,2]
[347515386,1735897867478,-727.59,9.544e-05,2]
[347515387,1735897867488,-500.0,9.544e-05,2]
[347515388,1735897867499,-2066.79,9.544e-05,2]
[347515389,1735897867508,-500.0,9.544e-05,2]
[347515390,1735897867517,-500.0,9.544e-05,2]
[347515391,1735897867527,-500.0,9.544e-05,2]
[347515392,1735897867536,-500.0,9.544e-05,2]
[347515393,1735897867550,-1809.59,9.544e-05,2]
[347515394,1735897867559,-500.0,9.544e-05,2]
[347515395,1735897867568,-500.0,9.544e-05,2]
[347515396,1735897867579,-506.269178,9.544e-05,2]
[347515397,1735897867589,-500.0,9.544e-05,2]
[347515398,1735897867600,-500.0,9.544e-05,2]
[347515399,1735897867609,-500.0,9.544e-05,2]
[347515400,1735897867619,-1799.09,9.544e-05,2]
[347515401,1735897867629,-3207.79,9.544e-05,2]
[347515402,1735897867640,-500.0,9.544e-05,2]
[347515403,1735897867651,-583.31,9.544e-05,2]
[347515404,1735897867660,-500.0,9.544e-05,2]
[347515405,1735897867669,-1854.01,9.544e-05,2]
[347515406,1735897867680,-500.0,9.544e-05,2]
[347515407,1735897867689,-1951.1,9.544e-05,2]
[347515408,1735897867699,-1960.12,9.544e-05,2]
[347515409,1735897867708,-502.4495283,9.544e-05,2]
[347515410,1735897867718,-500.0,9.544e-05,2]
[347515411,1735897867728,-2911.89,9.544e-05,2]
[347515412,1735897867741,-968.36,9.544e-05,2]
[347515413,1735897867751,-577.26,9.544e-05,2]
[347515414,1735897867761,-1165.94,9.544e-05,2]
[347515415,1735897867771,-500.0,9.544e-05,2]
[347515416,1735897867782,-1266.94,9.544e-05,2]
[347515417,1735897867791,-995.54,9.544e-05,2]
[347515418,1735897867801,-1666.22,9.544e-05,2]
[347515419,1735897867810,-500.0,9.544e-05,2]
[347515420,1735897867819,-2142.14,9.544e-05,2]
[347515421,1735897867828,-614.86,9.544e-05,2]
[347515422,1735897867837,-500.0,9.544e-05,2]
[347515423,1735897867847,-500.0,9.544e-05,2]
[347515424,1735897867855,-2516.74,9.544e-05,2]
[347515425,1735897867865,-1912.36,9.544e-05,2]
[347515426,1735897867875,-500.0,9.544e-05,2]
[347515427,1735897867885,-276.29773398,9.544e-05,2]
[347515428,1735897867895,-500.0,9.544e-05,2]
[347515429,1735897867904,-741.84,9.544e-05,2]
[347515430,1735897867915,-1208.98,9.544e-05,2]
[347515431,1735897867923,-690.05,9.544e-05,2]
[347515432,1735897867936,-500.0,9.544e-05,2]
[347515433,1735897867945,-1004.2,9.544e-05,2]
[347515434,1735897867954,-1855.53,9.544e-05,2]
[347515435,1735897867962,-761.54,9.544e-05,2]
[347515436,1735897867971,-1606.57,9.544e-05,2]
[347515437,1735897867980,-501.61,9.544e-05,2]
[347515438,1735897867989,-500.0,9.544e-05,2]
[347515439,1735897867998,-2964.79,9.544e-05,2]
[347515440,1735897868007,-500.0,9.544e-05,2]
[347515441,1735897868016,-500.0,9.544e-05,2]
[347515442,1735897868026,-1803.24,9.544e-05,2]
[347515443,1735897868036,-500.0,9.544e-05,2]
[347515444,1735897868045,-500.0,9.544e-05,2]
[347515445,1735897868055,-500.0,9.544e-05,2]
[347515446,1735897868068,-707.58,9.544e-05,2]
[347515447,1735897868077,-1125.71,9.544e-05,2]
[347515448,1735897868087,-619.54,9.544e-05,2]
[347515449,1735897868096,-336.37369628,9.544e-05,2]
[347515450,1735897868106,-500.0,9.544e-05,2]
[347515451,1735897868117,-2292.62,9.544e-05,2]
[347515452,1735897868127,-500.0,9.544e-05,2]
[347515453,1735897868136,-553.62,9.544e-05,2]
[347515454,1735897868146,-731.01,9.544e-05,2]
[347515455,1735897868155,-1891.06,9.544e-05,2]
[347515456,1735897868165,-1491.69,9.544e-05,2]
[347515457,1735897868174,-1392.52,9.544e-05,2]
[347515458,1735897868184,-656.42,9.544e-05,2]
[347515459,1735897868195,-500.0,9.544e-05,2]
[347515460,1735897868205,-500.0,9.544e-05,2]
[347515461,1735897868214,-540.46,9.544e-05,2]
[347515462,1735897868223,-512.86,9.544e-05,2]
[347515463,1735897868232,-2680.38,9.544e-05,2]
[347515464,1735897868241,-917.15,9.544e-05,2]
[347515465,1735897868250,-2492.71,9.544e-05,2]
[347515466,1735897868260,-622.06541751,9.544e-05,2]
[347515467,1735897868268,-1013.52,9.544e-05,2]
[347515468,1735897868278,-500.0,9.544e-05,2]
[347515469,1735897868287,-503.5304116,9.544e-05,2]
[347515470,1735897868297,-2766.0,9.544e-05,2]
[347515471,1735897868307,-500.0,9.544e-05,2]
[347515472,1735897868316,-500.0,9.544e-05,2]
[347515473,1735897868328,-3326.92,9.544e-05,2]
[347515474,1735897868337,-500.0,9.544e-05,2]
[347515475,1735897868347,-551.99,9.544e-05,2]
[347515476,1735897868357,-500.0,9.544e-05,2]
[347515477,1735897868367,-500.0,9.544e-05,2]
[347515478,1735897868378,-910.8,9.544e-05,2]
[347515479,1735897868389,-584.4,9.544e-05,2]
[347515480,1735897868398,-1549.13,9.544e-05,2]
[347515481,1735897868407,-200.71118932,9.545e-05,2]
[347515482,1735897868416,-500.0,9.545e-05,2]
[347515483,1735897868425,-500.0,9.545e-05,2]
[347515484,1735897868435,-502.49831916,9.545e-05,2]
[347515485,1735897868443,-500.0,9.545e-05,2]
[347515486,1735897868452,-501.49842122,9.545e-05,2]
[347515487,1735897868462,-500.0,9.545e-05,2]
[347515488,1735897868471,-500.0,9.545e-05,2]
[347515489,1735897868480,-5289.67,9.545e-05,2]
[347515490,1735897868489,-5994.19,9.545e-05,2]
[347515491,1735897868499,-502.69260174,9.545e-05,2]
[347515492,1735897868508,-4238.37,9.545e-05,2]
[347515493,1735897868518,-500.0,9.545e-05,2]
[347515494,1735897868526,-500.0,9.545e-05,2]
[347515495,1735897868535,-500.0,9.545e-05,2]
[347515496,1735897868545,-599.39991311,9.545e-05,2]
[347515497,1735897868555,-7830.78,9.545e-05,2]
[347515498,1735897868564,-500.86802189,9.545e-05,2]
[347515499,1735897868573,-9688.5,9.545e-05,2]
[347515500,1735897868582,-501.44668442,9.545e-05,2]
[347515501,1735897868591,-500.0,9.545e-05,2]
[347515502,1735897868600,-1376.7,9.545e-05,2]
[347515503,1735897868610,-615.77530928,9.545e-05,2]
[347515504,1735897868619,-500.0,9.545e-05,2]
[347515505,1735897868628,-6370.19,9.545e-05,2]
[347515506,1735897868637,-500.0,9.545e-05,2]
[347515507,1735897868646,-12828.72,9.545e-05,2]
[347515508,1735897868656,-803.82,9.545e-05,2]
[347515509,1735897868665,-2135.2,9.545e-05,2]
[347515510,1735897868675,-1053.03,9.545e-05,2]
[347515511,1735897868687,-1069.87,9.545e-05,2]
[347515512,1735897868697,-1900.73,9.545e-05,2]
[347515513,1735897868707,-3505.1,9.545e-05,2]
[347515514,1735897868716,-1380.55,9.545e-05,2]
[347515515,1735897868726,-1778.86,9.545e-05,2]
[347515516,1735897868736,-1144.59,9.545e-05,2]
[347515517,1735897868746,-1841.26,9.545e-05,2]
[347515518,1735897868756,-1867.46,9.545e-05,2]
[347515519,1735897868765,-3841.48,9.545e-05,2]
[347515520,1735897868774,-2511.49,9.545e-05,2]
[347515521,1735897868783,-500.0,9.545e-05,2]
[347515522,1735897868793,-5884.72,9.545e-05,2]
[347515523,1735897868802,-3019.53,9.545e-05,2]
[347515524,1735897868811,-4183.98,9.545e-05,2]
[347515525,1735897868823,-552.26,9.545e-05,2]
[347515526,1735897868841,-1086.75,9.545e-05,2]
[347515527,1735897868859,-1946.39,9.545e-05,2]
[347515528,1735897868878,-500.0,9.545e-05,2]
[347515529,1735897868889,-500.0,9.545e-05,2]
[347515530,1735897868898,-1164.43,9.545e-05,2]
[347515531,1735897868908,-500.0,9.545e-05,2]
[347515532,1735897868917,-500.0,9.545e-05,2]
[347515533,1735897868927,-1914.54,9.545e-05,2]
[347515534,1735897868935,-5258.8,9.545e-05,2]
[347515535,1735897868944,-724.36,9.545e-05,2]
[347515536,1735897868953,-1624.15,9.545e-05,2]
[347515537,1735897868963,-1707.53,9.545e-05,2]
[347515538,1735897868972,-500.0,9.545e-05,2]
[347515539,1735897868981,-310.30146298,9.545e-05,2]
[347515540,1735897868990,-2942.33,9.545e-05,2]
[347515541,1735897869001,-2057.75,9.545e-05,2]
[347515542,1735897869010,-5583.05,9.545e-05,2]
[347515543,1735897869019,-1747.71,9.545e-05,2]
[347515544,1735897869030,-1703.88,9.545e-05,2]
[347515545,1735897869039,-500.0,9.545e-05,2]
[347515546,1735897869048,-2318.18,9.545e-05,2]
[347515547,1735897869057,-6516.24,9.545e-05,2]
[347515548,1735897869066,-1896.91,9.545e-05,2]
[347515549,1735897869075,-4176.54,9.545e-05,2]
[347515550,1735897869084,-576.95,9.545e-05,2]
[347515551,1735897869094,-2763.46,9.545e-05,2]
[347515552,1735897869103,-1299.93,9.545e-05,2]
[347515553,1735897869113,-8027.13,9.545e-05,2]
[347515554,1735897869126,-2956.54,9.545e-05,2]
[347515555,1735897869135,-1814.31,9.545e-05,2]
[347515556,1735897869144,-500.0,9.545e-05,2]
[347515557,1735897869153,-2268.5,9.545e-05,2]
[347515558,1735897869163,-2517.51,9.545e-05,2]
[347515559,1735897869173,-3138.74,9.545e-05,2]
[347515560,1735897869182,-1924.0,9.545e-05,2]
[347515561,1735897869191,-1479.04,9.545e-05,2]
[347515562,1735897869200,-2349.43,9.545e-05,2]
[347515563,1735897869210,-1845.0,9.545e-05,2]
[347515564,1735897869219,-1342.02,9.545e-05,2]
[347515565,1735897869228,-1466.27,9.545e-05,2]
[347515566,1735897869238,-3020.93,9.545e-05,2]
[347515567,1735897869250,-3134.09,9.545e-05,2]
[347515568,1735897869259,-3176.49,9.545e-05,2]
[347515569,1735897869268,-1882.48,9.545e-05,2]
[347515570,1735897869277,-3061.0,9.545e-05,2]
[347515571,1735897869287,-2621.89,9.545e-05,2]
[347515572,1735897869297,-10196.53,9.545e-05,2]
[347515573,1735897869307,-1405.22,9.545e-05,2]
[347515574,1735897869316,-2338.48,9.545e-05,2]
[347515575,1735897869327,-1340.74,9.545e-05,2]
[347515576,1735897869337,-1872.22,9.545e-05,2]
[347515577,1735897869346,-2097.87,9.545e-05,2]
[347515578,1735897869355,-500.0,9.545e-05,2]
[347515579,1735897869365,-1532.61,9.545e-05,2]
[347515580,1735897869375,-869.67,9.545e-05,2]
[347515581,1735897869384,-500.0,9.545e-05,2]
[347515582,1735897869393,-1725.81,9.545e-05,2]
[347515583,1735897869403,-2295.81,9.545e-05,2]
[347515584,1735897869412,-1549.13,9.545e-05,2]
[347515585,1735897869421,-1549.13,9.545e-05,2]
[347515586,1735897869430,-637.38,9.545e-05,2]
[347515587,1735897869440,-500.0,9.546e-05,2]
[347515588,1735897869449,-500.0,9.546e-05,2]
[347515589,1735897869458,-500.0,9.546e-05,2]
[347515590,1735897869467,-501.60786134,9.546e-05,2]
[347515591,1735897869477,-555.2797078,9.546e-05,2]
[347515592,1735897869486,-539.0,9.546e-05,2]
[347515593,1735897869495,-500.0,9.546e-05,2]
[347515594,1735897869507,-1190.1,9.546e-05,2]
[347515595,1735897869516,-1175.31,9.546e-05,2]
[347515596,1735897869526,-500.0,9.546e-05,2]
[347515597,1735897869535,-500.0,9.546e-05,2]
[347515598,1735897869544,-500.0,9.546e-05,2]
[347515599,1735897869554,-1791.27,9.546e-05,2]
[347515600,1735897869563,-500.0,9.546e-05,2]
[347515601,1735897869573,-422.78807069,9.546e-05,2]
[347515602,1735897869582,-500.0,9.546e-05,2]
[347515603,1735897869592,-502.32048293,9.546e-05,2]
[347515604,1735897869601,-500.0,9.546e-05,2]
[347515605,1735897869610,-1241.72,9.546e-05,2]
[347515606,1735897869619,-500.0,9.546e-05,2]
[347515607,1735897869629,-500.0,9.546e-05,2]
[347515608,1735897869638,-500.0,9.546e-05,2]
[347515609,1735897869647,-500.0,9.546e-05,2]
[347515610,1735897869656,-753.46,9.546e-05,2]
[347515611,1735897869666,-500.0,9.546e-05,2]
[347515612,1735897869675,-500.0,9.546e-05,2]
[347515613,1735897869684,-500.0,9.546e-05,2]
[347515614,1735897869694,-500.0,9.546e-05,2]
[347515615,1735897869703,-1696.05,9.546e-05,2]
[347515616,1735897869713,-500.0,9.546e-05,2]
[347515617,1735897869723,-500.0,9.546e-05,2]
[347515618,1735897869732,-888.69,9.546e-05,2]
[347515619,1735897869742,-1221.53,9.546e-05,2]
[347515620,1735897869754,-1205.31,9.546e-05,2]
[347515621,1735897869764,-1924.82,9.546e-05,2]
[347515622,1735897869774,-683.94,9.546e-05,2]
[347515623,1735897869783,-684.65,9.546e-05,2]
[347515624,1735897869794,-1217.93,9.546e-05,2]
[347515625,1735897869803,-501.58621455,9.546e-05,2]
[347515626,1735897869813,-1825.57,9.546e-05,2]
[347515627,1735897869822,-1097.87,9.546e-05,2]
[347515628,1735897869831,-500.0,9.546e-05,2]
[347515629,1735897869841,-727.72,9.546e-05,2]
[347515630,1735897869851,-556.29,9.546e-05,2]
[347515631,1735897869860,-597.18,9.546e-05,2]
[347515632,1735897869870,-570.65,9.546e-05,2]
[347515633,1735897869879,-795.58,9.546e-05,2]
[347515634,1735897869889,-2623.63,9.546e-05,2]
[347515635,1735897869898,-527.33,9.546e-05,2]
[347515636,1735897869907,-780.31,9.546e-05,2]
[347515637,1735897869917,-957.3,9.546e-05,2]
[347515638,1735897869926,-500.0,9.546e-05,2]
[347515639,1735897869935,-1034.1,9.546e-05,2]
[347515640,1735897869944,-500.0,9.546e-05,2]
[347515641,1735897869953,-501.54553552,9.546e-05,2]
[347515642,1735897869962,-522.41767288,9.546e-05,2]
[347515643,1735897869971,-500.0,9.546e-05,2]
[347515644,1735897869981,-2002.66,9.546e-05,2]
[347515645,1735897869990,-683.33,9.546e-05,2]
[347515646,1735897870003,-500.0,9.546e-05,2]
[347515647,1735897870012,-500.0,9.546e-05,2]
[347515648,1735897870022,-524.33,9.546e-05,2]
[347515649,1735897870032,-500.0,9.546e-05,2]
[347515650,1735897870041,-916.29,9.546e-05,2]
[347515651,1735897870051,-500.0,9.546e-05,2]
[347515652,1735897870060,-500.0,9.546e-05,2]
[347515653,1735897870070,-1157.28,9.546e-05,2]
[347515654,1735897870079,-500.0,9.546e-05,2]
[347515655,1735897870089,-500.0,9.546e-05,2]
[347515656,1735897870098,-500.0,9.546e-05,2]
[347515657,1735897870108,-500.0,9.546e-05,2]
[347515658,1735897870118,-651.92,9.546e-05,2]
[347515659,1735897870128,-1202.27,9.546e-05,2]
[347515660,1735897870140,-1443.69,9.546e-05,2]
[347515661,1735897870149,-1298.7,9.546e-05,2]
[347515662,1735897870159,-500.0,9.546e-05,2]
[347515663,1735897870168,-503.72562399,9.546e-05,2]
[347515664,1735897870178,-500.0,9.546e-05,2]
[347515665,1735897870187,-513.45,9.546e-05,2]
[347515666,1735897870197,-500.0,9.546e-05,2]
[347515667,1735897870205,-500.0,9.546e-05,2]
[347515668,1735897870416,-500.0,9.546e-05,2]
[347515669,1735897870426,-500.0,9.546e-05,2]
[347515670,1735897870436,-500.0,9.546e-05,2]
[347515671,1735897870445,-975.65,9.546e-05,2]
[347515672,1735897870454,-500.0,9.546e-05,2]
[347515673,1735897870464,-1235.66,9.546e-05,2]
[347515674,1735897870476,-1260.46,9.546e-05,2]
[347515675,1735897870486,-227.72364793,9.546e-05,2]
[347515676,1735897870495,-500.0,9.546e-05,2]
[347515677,1735897870506,-1103.6,9.546e-05,2]
[347515678,1735897870515,-500.0,9.546e-05,2]
[347515679,1735897870524,-500.0,9.546e-05,2]
[347515680,1735897870533,-500.0,9.546e-05,2]
[347515681,1735897870542,-500.0,9.546e-05,2]
[347515682,1735897870551,-547.68,9.546e-05,2]
[347515683,1735897870561,-500.0,9.546e-05,2]
[347515684,1735897870570,-500.0,9.546e-05,2]
[347515685,1735897870579,-958.78,9.546e-05,2]
[347515686,1735897870590,-1059.11,9.546e-05,2]
[347515687,1735897870600,-542.52498139,9.546e-05,2]
[347515688,1735897870610,-500.0,9.546e-05,2]
[347515689,1735897870619,-734.65,9.546e-05,2]
[347515690,1735897870628,-500.0,9.546e-05,2]
[347515691,1735897870638,-500.0,9.546e-05,2]
[347515692,1735897870647,-500.0,9.546e-05,2]
[347515693,1735897870656,-736.3,9.546e-05,2]
[347515694,1735897870665,-502.32348837,9.546e-05,2]
[347515695,1735897870674,-500.0,9.546e-05,2]
[347515696,1735897870684,-500.0,9.546e-05,2]
[347515697,1735897870693,-500.0,9.546e-05,2]
[347515698,1735897870703,-794.45,9.546e-05,2]
[347515699,1735897870713,-500.0,9.546e-05,2]
[347515700,1735897870722,-500.0,9.546e-05,2]
[347515701,1735897870732,-500.0,9.546e-05,2]
[347515702,1735897870742,-815.99,9.546e-05,2]
[347515703,1735897870752,-1502.02,9.546e-05,2]
[347515704,1735897870763,-500.0,9.546e-05,2]
[347515705,1735897870773,-500.0,9.546e-05,2]
[347515706,1735897870782,-1222.16,9.546e-05,2]
[347515707,1735897870792,-723.11,9.546e-05,2]
[347515708,1735897870801,-500.0,9.546e-05,2]
[347515709,1735897870811,-500.0,9.546e-05,2]
[347515710,1735897870820,-1428.34,9.546e-05,2]
[347515711,1735897870830,-501.48066161,9.546e-05,2]
[347515712,1735897870839,-500.0,9.546e-05,2]
[347515713,1735897870848,-502.37868812,9.546e-05,2]
[347515714,1735897870858,-1427.34,9.546e-05,2]
[347515715,1735897870867,-4641.84,9.546e-05,2]
[347515716,1735897870876,-548.38,9.546e-05,2]
[347515717,1735897870886,-501.42755983,9.546e-05,2]
[347515718,1735897870895,-1206.62,9.546e-05,2]
[347515719,1735897870905,-1162.21,9.546e-05,2]
[347515720,1735897870914,-6158.26,9.546e-05,2]
[347515721,1735897870924,-500.0,9.546e-05,2]
[347515722,1735897870933,-500.0,9.546e-05,2]
[347515723,1735897870943,-500.0,9.546e-05,2]
[347515724,1735897870952,-1275.88,9.546e-05,2]
[347515725,1735897870961,-580.68210272,9.546e-05,2]
[347515726,1735897870970,-500.0,9.546e-05,2]
[347515727,1735897870979,-500.0,9.546e-05,2]
[347515728,1735897870989,-1324.87,9.546e-05,2]
[347515729,1735897870998,-500.0,9.546e-05,2]
[347515730,1735897871008,-1135.37,9.546e-05,2]
[347515731,1735897871017,-500.0,9.546e-05,2]
[347515732,1735897871027,-918.35,9.546e-05,2]
[347515733,1735897871037,-6841.13,9.546e-05,2]
[347515734,1735897871046,-500.0,9.546e-05,2]
[347515735,1735897871055,-1935.03,9.546e-05,2]
[347515736,1735897871066,-823.6,9.546e-05,2]
[347515737,1735897871075,-1694.23,9.546e-05,2]
[347515738,1735897871084,-1613.06,9.546e-05,2]
[347515739,1735897871093,-500.0,9.546e-05,2]
[347515740,1735897871103,-5296.48,9.546e-05,2]
[347515741,1735897871113,-1939.7,9.546e-05,2]
[347515742,1735897871123,-500.0,9.546e-05,2]
[347515743,1735897871134,-16322.90438194,9.546e-05,2]
[347515744,1735897871146,-1162.3,9.546e-05,2]
[347515745,1735897871157,-2021.28,9.546e-05,2]
[347515746,1735897871167,-747.77570426,9.546e-05,2]
[347515747,1735897871178,-500.0,9.546e-05,2]
[347515748,1735897871187,-1549.13,9.546e-05,2]
[347515749,1735897871196,-3076.62,9.546e-05,2]
[347515750,1735897871207,-500.0,9.547e-05,2]
[347515751,1735897871217,-2017.83,9.547e-05,2]
[347515752,1735897871227,-500.0,9.547e-05,2]
[347515753,1735897871236,-500.0,9.547e-05,2]
[347515754,1735897871246,-685.46,9.547e-05,2]
[347515755,1735897871255,-6821.8149186,9.552e-05,2]
[347515756,1735897871265,-16499.337307,9.552e-05,2]
[347515757,1735897871274,-417.14805974,9.552e-05,2]
[347515758,1735897871283,-1451.7478223,9.552e-05,2]
[347515759,1735897871292,-1778.86,9.557e-05,2]
[347515760,1735897871302,-1778.86,9.557e-05,2]
[347515761,1735897871311,-500.0,9.557e-05,2]
[347515762,1735897871320,-500.0,9.557e-05,2]
[347515763,1735897871329,-1549.13,9.557e-05,2]
[347515764,1735897871338,-1549.13,9.557e-05,2]
[347515765,1735897871348,-435686.78026986,9.558e-05,2]
[347515766,1735897871357,-1549.13,9.588e-05,2]
[347515767,1735897871366,-59569.29,9.589e-05,2]
[347515768,1735897871375,-1000.0,9.59e-05,2]
[347515769,1735897871384,-2400.0,9.59e-05,2]
[347515770,1735897871393,-1549.13,9.597e-05,2]
[347515771,1735897871403,-356962.0746058,9.598e-05,2]
[347515772,1735897871412,-150.0,9.606e-05,2]
[347515773,1735897871421,-150.0,9.606e-05,2]
[347515774,1735897871430,-217.85,9.606e-05,2]
[347515775,1735897871439,-250.0,9.606e-05,2]
[347515776,1735897871449,-150.339,9.606e-05,2]
[347515777,1735897871459,-1778.86,9.648e-05,2]
[347515778,1735897871468,-500.0,9.648e-05,2]
[347515779,1735897871479,-1778.86,9.649e-05,2]
[347515780,1735897871489,-500.0,9.649e-05,2]
[347515781,1735897871499,-1549.13,9.649e-05,2]
[347515782,1735897871510,-1549.13,9.649e-05,2]
[347515783,1735897871519,-1549.13,9.649e-05,2]
[347515784,1735897871529,-1549.13,9.649e-05,2]
[347515785,1735897871538,-500.0,9.65e-05,2]
[347515786,1735897871547,-3085.84,9.65e-05,2]
[347515787,1735897871557,-3489.47,9.65e-05,2]
[347515788,1735897871566,-500.0,9.65e-05,2]
[347515789,1735897871575,-1214.53,9.65e-05,2]
[347515790,1735897871585,-3216.75,9.65e-05,2]
[347515791,1735897871594,-2477.49,9.65e-05,2]
[347515792,1735897871604,-500.0,9.65e-05,2]
[347515793,1735897871613,-2993.69,9.65e-05,2]
[347515794,1735897871623,-1778.86,9.65e-05,2]
[347515795,1735897871632,-2524.86,9.65e-05,2]
[347515796,1735897871641,-500.0,9.682e-05,2]
[347515797,1735897871651,-1778.86,9.749e-05,2]
[347515798,1735897871660,-500.0,9.749e-05,2]
[347515799,1735897871670,-250000.0,9.75e-05,2]
[347515800,1735897871679,-166.7,9.784e-05,2]
[347515801,1735897871689,-10010.79377231,9.8e-05,2]
[347515802,1735897871699,-8400.0,9.8e-05,3]
[347515803,1735897871708,-153.0,9.812e-05,2]
[347515804,1735897871718,-500.0,9.813e-05,2]
[347515805,1735897871727,-1778.86,9.814e-05,2]
[347515806,1735897871736,-1248.41,9.816e-05,2]
[347515807,1735897871746,-6574.02,9.816e-05,2]
[347515808,1735897871755,-10321.7,9.816e-05,2]
[347515809,1735897871765,-2702.28,9.816e-05,2]
[347515810,1735897871775,-6403.77,9.816e-05,2]
[347515811,1735897871784,-2306.34,9.816e-05,2]
[347515812,1735897871796,-5858.91,9.816e-05,2]
[347515813,1735897871805,-1264.66,9.816e-05,2]
[347515814,1735897871815,-643.57,9.816e-05,2]
[347515815,1735897871825,-1122.48,9.816e-05,2]
[347515816,1735897871834,-500.0,9.817e-05,2]
[347515817,1735897871843,-3256.86,9.817e-05,2]
[347515818,1735897871853,-500.0,9.817e-05,2]
[347515819,1735897871862,-2490.62,9.817e-05,2]
[347515820,1735897871871,-543.13,9.817e-05,2]
[347515821,1735897871880,-500.0,9.817e-05,2]
[347515822,1735897871889,-2331.2,9.817e-05,2]
[347515823,1735897871899,-1042.51,9.817e-05,2]
[347515824,1735897871908,-500.0,9.817e-05,2]
[347515825,1735897871918,-820.27,9.817e-05,2]
[347515826,1735897871927,-500.0,9.817e-05,2]
[347515827,1735897871936,-1368.34,9.817e-05,2]
[347515828,1735897871946,-2734.34,9.817e-05,2]
[347515829,1735897871955,-2365.28,9.817e-05,2]
[347515830,1735897871965,-2370.47,9.817e-05,2]
[347515831,1735897871975,-2339.09,9.817e-05,2]
[347515832,1735897871984,-657.87,9.817e-05,2]
[347515833,1735897871994,-887.02,9.817e-05,2]
[347515834,1735897872004,-1410.2,9.817e-05,2]
[347515835,1735897872014,-1339.42,9.817e-05,2]
[347515836,1735897872023,-500.0,9.817e-05,2]
[347515837,1735897872033,-1408.28,9.817e-05,2]
[347515838,1735897872042,-521.83,9.817e-05,2]
[347515839,1735897872052,-500.0,9.817e-05,2]
[347515840,1735897872061,-500.0,9.817e-05,2]
[347515841,1735897872070,-2247.98,9.817e-05,2]
[347515842,1735897872080,-538.11,9.817e-05,2]
[347515843,1735897872089,-1040.57,9.817e-05,2]
[347515844,1735897872098,-4191.21,9.817e-05,2]
[347515845,1735897872108,-2974.69,9.817e-05,2]
[347515846,1735897872118,-500.0,9.817e-05,2]
[347515847,1735897872127,-500.0,9.817e-05,2]
[347515848,1735897872140,-3373.87,9.817e-05,2]
[347515849,1735897872150,-1797.59,9.817e-05,2]
[347515850,1735897872160,-2652.7,9.817e-05,2]
[347515851,1735897872169,-2801.81,9.817e-05,2]
[347515852,1735897872179,-767.7,9.817e-05,2]